bitfinex/quotes_ETHUSD_20250129
["timestamp","ask_amount","ask_price","bid_price","bid_amount"]
[1738139062512,0.16436373,3154.0,3153.9,4.47607]
[1738139063108,3.98278,3154.7,3153.9,1.33710243]
[1738139063378,3.98278,3154.7,3154.4,0.55]
[1738139063379,0.16434392,3154.5,3154.4,0.55]
[1738139063598,0.16434392,3154.5,3154.4,3.72017]
[1738139064081,0.16434392,3154.5,3154.4,7.64757]
[1738139064281,0.8129,3155.0,3154.6,3.16994]
[1738139064723,0.16441535,3155.1,3154.7,3.16987]
[1738139065379,0.16441535,3155.1,3154.8,3.71976]
[1738139065579,0.16441535,3155.1,3154.8,3.75145435]
[1738139066090,0.16441535,3155.1,3154.8,3.71976]
[1738139067083,0.16441535,3155.1,3154.7,3.71987]
[1738139067439,0.16441535,3155.1,3154.8,0.04499944]
[1738139067796,0.16441535,3155.1,3154.7,3.7515636]
[1738139067950,3.97727,3155.4,3154.9,0.55]
[1738139068155,0.1644915,3155.2,3154.9,3.71966]
[1738139068381,0.1644915,3155.2,3155.0,0.03169337]
[1738139068539,0.1644915,3155.2,3155.0,0.04499944]
[1738139069184,0.1644915,3155.2,3155.1,3.71947]
[1738139069476,0.1644915,3155.2,3155.1,3.75116266]
[1738139069682,0.1644915,3155.2,3155.1,3.76446944]
[1738139070287,0.1644915,3155.2,3155.1,0.59499944]
[1738139078311,3.66722765,3155.2,3155.1,0.04499944]
[1738139078605,4.49422765,3155.2,3155.1,0.04499944]
[1738139078908,4.1608615,3155.2,3155.1,0.04499944]
[1738139083672,3.16962,3155.0,3154.7,0.55]
[1738139084975,4.1608615,3155.2,3154.7,0.55]
[1738139085175,3.16952,3155.1,3154.7,0.55]
[1738139087021,3.16957,3155.0,3154.7,0.55]
[1738139088113,3.16957,3155.0,3154.7,1.3713]
[1738139091249,3.16957,3155.0,3154.7,0.19465444]
[1738139092348,3.16957,3155.0,3154.6,5.38]
[1738139097501,3.16957,3155.0,3154.7,0.04409257]
[1738139098218,4.1608915,3155.2,3154.7,0.04409257]
[1738139098614,7.3303315,3155.2,3154.7,0.04409257]
[1738139098765,3.16947,3155.1,3154.7,0.04409257]
[1738139100406,3.16957,3155.0,3154.7,0.04409257]
[1738139100784,3.92167,3154.8,3154.7,0.04409257]
[1738139101297,0.7519,3154.8,3154.0,6.213]
[1738139101502,3.17011,3154.5,3154.0,6.213]
[1738139102120,3.17011,3154.5,3154.0,9.38356]
[1738139102422,3.17,3154.6,3154.1,6.17046]
[1738139102621,0.16460392,3154.8,3154.3,0.8049]
[1738139102793,0.16460392,3154.8,3154.4,3.17015]
[1738139102991,0.16460392,3154.8,3154.5,3.17004]
[1738139103529,3.16892,3155.7,3154.7,6.71987]
[1738139103710,3.16871,3155.9,3155.3,0.8049]
[1738139103882,0.16442788,3155.6,3155.3,0.8049]
[1738139104375,0.16442788,3155.6,3155.3,3.97416]
[1738139105009,0.16442788,3155.6,3155.3,0.8049]
[1738139105209,0.16442788,3155.6,3155.1,7.13878]
[1738139107123,0.16442788,3155.6,3155.1,12.51878]
[1738139109530,0.16442788,3155.6,3155.2,3.16934]
[1738139112318,0.16442788,3155.6,3155.3,0.04200545]
[1738139112518,0.16442788,3155.6,3155.2,3.16934]
[1738139112718,0.16442788,3155.6,3155.4,0.04200545]
[1738139112933,0.16442788,3155.6,3155.2,3.16934]
[1738139113119,0.16442788,3155.6,3155.5,0.04200545]
[1738139113318,0.16442788,3155.6,3155.2,3.16934]
[1738139113540,0.16442788,3155.6,3155.5,0.04200545]
[1738139113723,0.16442788,3155.6,3155.2,3.16934]
[1738139113920,0.16442788,3155.6,3155.5,0.04200545]
[1738139114125,0.16442788,3155.6,3155.2,3.16934]
[1738139114326,0.16442788,3155.6,3155.5,0.04200545]
[1738139114611,0.16442788,3155.6,3155.2,6.33865]
[1738139114835,0.16442788,3155.6,3155.5,0.04200545]
[1738139115037,0.16442788,3155.6,3155.2,6.33865]
[1738139115235,0.16442788,3155.6,3155.5,0.04200545]
[1738139115436,0.16442788,3155.6,3155.2,6.33865]
[1738139115755,0.16442788,3155.6,3155.3,3.16925]
[1738139115963,0.16442788,3155.6,3155.3,3.21125545]
[1738139118029,0.16442788,3155.6,3155.3,0.04200545]
[1738139118448,0.16442788,3155.6,3155.2,6.33861]
[1738139118742,0.16442788,3155.6,3155.4,0.04188819]
[1738139118943,0.16442788,3155.6,3155.2,6.33861]
[1738139119147,0.16442788,3155.6,3155.5,0.04188819]
[1738139119355,0.16442788,3155.6,3155.2,6.33861]
[1738139119665,0.16442788,3155.6,3155.5,0.04188819]
[1738139119859,0.16442788,3155.6,3155.5,3.16906]
[1738139120063,0.16442788,3155.6,3155.5,4.62327734]
[1738139120265,0.7584,3156.3,3155.5,5.20690471]
[1738139120560,0.16444831,3156.1,3155.8,6.3374]
[1738139120766,0.16444831,3156.1,3155.8,3.16869]
[1738139120951,0.16444831,3156.1,3155.9,0.04184713]
[1738139121950,0.16444831,3156.1,3155.7,3.16886]
[1738139122151,0.16444831,3156.1,3156.0,0.04184713]
[1738139122367,0.16444831,3156.1,3155.7,3.16886]
[1738139122537,0.16444831,3156.1,3156.0,0.04184713]
[1738139122739,0.16444831,3156.1,3155.7,3.16886]
[1738139123058,0.16444831,3156.1,3156.0,0.04184713]
[1738139123265,0.16444831,3156.1,3155.7,3.16886]
[1738139123773,0.16444831,3156.1,3155.8,0.04184713]
[1738139123929,0.16444831,3156.1,3156.0,3.16856]
[1738139124334,0.16444831,3156.1,3156.0,3.21040713]
[1738139125582,3.16781,3156.8,3156.3,3.16824]
[1738139125787,3.98073,3156.9,3156.1,3.16846]
[1738139126080,0.16535995,3156.7,3156.4,0.04160091]
[1738139126239,3.33324995,3156.7,3156.2,3.16835]
[1738139126576,3.33324995,3156.7,3156.2,3.20995091]
[1738139127774,3.33324995,3156.7,3156.2,0.04160091]
[1738139129179,3.33324995,3156.7,3156.2,3.20995091]
[1738139131588,6.50117995,3156.7,3156.2,3.20995091]
[1738139131884,3.33324995,3156.7,3156.2,3.20995091]
[1738139132787,3.33324995,3156.7,3156.2,6.37824091]
[1738139132991,0.16535995,3156.7,3156.2,6.37824091]
[1738139133491,0.16535995,3156.7,3156.3,3.99023]
[1738139133699,0.16535995,3156.7,3156.3,4.03148171]
[1738139136604,0.16535995,3156.7,3156.4,3.16811]
[1738139137107,0.16535995,3156.7,3156.5,0.04125171]
[1738139137496,0.16535995,3156.7,3156.6,0.04125171]
[1738139137704,0.16535995,3156.7,3156.4,8.54811]
[1738139138009,0.16535995,3156.7,3156.6,0.04125171]
[1738139138165,0.16535995,3156.7,3156.4,8.54811]
[1738139138376,0.16535995,3156.7,3156.6,0.04125171]
[1738139138583,0.16535995,3156.7,3156.4,8.54811]
[1738139138783,0.16535995,3156.7,3156.6,0.04125171]
[1738139139007,0.16535995,3156.7,3156.4,8.54811]
[1738139139206,0.16535995,3156.7,3156.6,0.04125171]
[1738139139404,0.16535995,3156.7,3156.4,8.54811]
[1738139139610,0.16535995,3156.7,3156.6,0.04125171]
[1738139139817,0.16535995,3156.7,3156.4,8.54811]
[1738139140022,0.16535995,3156.7,3156.6,0.04125171]
[1738139140225,0.16535995,3156.7,3156.5,3.16805]
[1738139140379,0.16535995,3156.7,3156.6,0.04125171]
[1738139141681,0.16535995,3156.7,3156.6,3.20921171]
[1738139142722,0.16535995,3156.7,3156.6,4.02091171]
[1738139143020,3.96137,3157.4,3156.9,3.1676]
[1738139143192,0.16530707,3157.1,3157.0,3.97926]
[1738139143392,0.16530707,3157.1,3157.0,4.02010733]
[1738139144213,0.16530707,3157.1,3157.0,5.59387806]
[1738139144381,0.16530707,3157.1,3157.0,5.62555097]
[1738139145395,0.16530707,3157.1,3157.0,5.59387806]
[1738139146313,0.16530707,3157.1,3157.0,2.42631806]
[1738139146510,0.16530707,3157.1,3157.0,0.85254733]
[1738139147133,0.16530707,3157.1,3157.0,0.04084733]
[1738139148713,0.16530707,3157.1,3157.0,5.42084733]
[1738139153414,3.33276707,3157.1,3157.0,5.42084733]
[1738139154703,3.33276707,3157.1,3157.0,0.04084733]
[1738139154903,3.16757,3157.0,3156.7,5.38]
[1738139157346,3.16757,3157.0,3156.8,0.04021705]
[1738139160650,0.16530707,3157.1,3156.8,0.04021705]
[1738139161227,3.33283707,3157.1,3156.8,0.04021705]
[1738139163339,0.16530707,3157.1,3156.8,0.04021705]
[1738139166869,0.57920378,3157.1,3156.8,0.04021705]
[1738139167081,3.16766,3156.9,3156.8,0.04021705]
[1738139167670,3.98403,3157.0,3156.8,0.04021705]
[1738139169373,3.16763,3157.0,3156.8,0.04021705]
[1738139169525,0.16530707,3157.1,3156.9,0.55]
[1738139169730,0.16530707,3157.1,3157.0,3.71756]
[1738139169959,0.16530707,3157.1,3157.0,5.34161478]
[1738139170974,0.16530707,3157.1,3157.0,2.17405478]
[1738139171175,0.16530707,3157.1,3157.0,0.59018781]
[1738139171466,0.16530707,3157.1,3157.0,0.04018781]
[1738139171965,0.16530707,3157.1,3157.0,0.04010581]
[1738139172277,0.16530707,3157.1,3157.0,4.51146]
[1738139172454,0.16530707,3157.1,3157.0,1.38402924]
[1738139172771,0.16530707,3157.1,3157.0,5.97012924]
[1738139175788,0.16530707,3157.1,3157.0,5.42012924]
[1738139176584,3.33276707,3157.1,3157.0,5.42012924]
[1738139176945,4.06484278,3157.1,3157.0,5.42012924]
[1738139177887,0.16530707,3157.1,3157.0,5.42012924]
[1738139178489,0.16530707,3157.1,3157.0,0.04012924]
[1738139178853,0.16530707,3157.1,3156.8,0.7678]
[1738139179050,0.16530707,3157.1,3157.0,0.04012924]
[1738139179274,0.16530707,3157.1,3156.8,0.7678]
[1738139179480,0.16530707,3157.1,3157.0,0.04012924]
[1738139179651,0.16530707,3157.1,3156.8,0.7678]
[1738139180292,0.16530707,3157.1,3156.9,0.04012924]
[1738139183290,3.16756,3157.0,3156.7,0.55]
[1738139184993,0.16530707,3157.1,3156.7,0.55]
[1738139186486,0.16530707,3157.1,3156.7,2.74475]
[1738139187598,0.16530707,3157.1,3156.8,0.03986561]
[1738139187912,0.16530707,3157.1,3157.0,4.51276]
[1738139188208,0.16530707,3157.1,3157.0,7.58432748]
[1738139188499,0.16530707,3157.1,3157.0,7.55265489]
[1738139188703,0.16530707,3157.1,3157.0,9.16268238]
[1738139192399,0.8139,3157.8,3157.1,3.55]
[1738139192723,0.16528989,3157.5,3157.4,0.55]
[1738139193040,0.16528989,3157.5,3157.4,0.58989489]
[1738139202363,0.8139,3157.8,3157.4,3.75705489]
[1738139202714,0.8139,3157.8,3157.4,0.58989489]
[1738139203747,3.16687,3157.7,3157.4,0.58989489]
[1738139204466,0.8139,3157.8,3157.4,0.58989489]
[1738139204635,4.3728753,3157.9,3157.4,1.37899489]
[1738139205354,4.3728753,3157.9,3157.4,4.54608489]
[1738139205859,7.5396253,3157.9,3157.4,4.54608489]
[1738139206164,4.3728753,3157.9,3157.4,4.54608489]
[1738139207859,1.83917977,3158.3,3157.7,3.16679]
[1738139208034,3.16636,3158.2,3157.7,3.16679]
[1738139208235,0.16527826,3158.2,3157.8,0.03959623]
[1738139208450,0.16527826,3158.2,3157.6,3.16695]
[1738139208642,0.16527826,3158.2,3157.9,0.03959623]
[1738139208848,3.16651,3158.1,3157.6,3.16695]
[1738139209154,3.16651,3158.1,3157.6,0.55]
[1738139209385,0.7983,3157.9,3157.7,0.03951093]
[1738139210166,3.96496,3157.9,3157.7,0.03951093]
[1738139210534,0.7983,3157.9,3157.7,0.03951093]
[1738139212867,3.16676,3157.8,3157.7,0.03951093]
[1738139213224,3.96496,3157.9,3157.4,5.38]
[1738139213225,3.16706,3157.5,3157.4,5.38]
[1738139213436,3.16706,3157.5,3157.1,8.91]
[1738139213437,3.94786,3157.5,3157.2,0.55]
[1738139214242,3.16732,3157.3,3157.1,5.38]
[1738139214454,0.7808,3157.5,3156.6,3.91883]
[1738139214455,3.16743,3157.2,3156.6,3.91883]
[1738139214777,3.16743,3157.2,3156.6,4.310713]
[1738139214987,3.16743,3157.2,3156.7,0.55]
[1738139215125,3.16743,3157.2,3156.7,3.71785]
[1738139217490,3.16743,3157.2,3156.8,0.03915372]
[1738139217945,3.16756,3157.1,3156.8,0.03915372]
[1738139219486,3.16743,3157.2,3156.8,0.03915372]
[1738139219891,0.7646,3157.0,3156.8,0.03915372]
[1738139220393,3.16766,3156.9,3156.8,0.03915372]
[1738139220550,6.42967304,3156.9,3156.8,0.03915372]
[1738139220891,6.42967304,3156.9,3155.8,5.38]
[1738139220892,3.16863,3156.0,3155.8,5.38]
[1738139221096,3.98757,3156.1,3155.5,0.7886]
[1738139221299,0.8191,3156.1,3155.9,0.03726672]
[1738139221472,0.8191,3156.1,3155.6,3.16896]
[1738139221670,0.8191,3156.1,3156.0,0.03726672]
[1738139221885,0.8191,3156.1,3155.7,3.16879]
[1738139222067,0.8328,3156.4,3156.0,0.03726672]
[1738139222411,0.8328,3156.4,3156.1,0.03726672]
[1738139222757,0.8328,3156.4,3155.9,3.16857]
[1738139222974,0.8328,3156.4,3156.0,0.03726672]
[1738139223280,3.16808,3156.5,3156.0,0.78836672]
[1738139223486,3.16783,3156.8,3156.0,4.27391291]
[1738139223691,3.16783,3156.8,3156.2,3.16826]
[1738139223889,6.33569,3156.8,3156.2,3.16826]
[1738139224396,3.16794,3156.7,3156.3,0.03726672]
[1738139224598,3.16798,3156.6,3156.1,0.55]
[1738139224906,3.94047,3156.5,3156.4,0.03726672]
[1738139225196,3.16841,3156.2,3156.0,5.38]
[1738139226657,6.33643,3156.4,3156.0,5.38]
[1738139226859,3.16818,3156.4,3156.0,5.38]
[1738139228059,3.16827,3156.3,3156.0,5.38]
[1738139228264,3.33365002,3156.3,3156.0,5.38]
[1738139229302,0.16538002,3156.3,3156.0,5.38]
[1738139231176,3.16818,3156.4,3156.0,5.38]
[1738139231578,6.50181528,3156.4,3156.0,5.38]
[1738139232211,3.33355528,3156.4,3156.0,5.38]
[1738139232498,3.16828,3156.3,3156.1,0.03726672]
[1738139232701,3.33358528,3156.4,3156.1,0.03726672]
[1738139234892,6.50181528,3156.4,3156.1,0.03726672]
[1738139235075,3.33358528,3156.4,3156.1,0.03726672]
[1738139235975,6.50182528,3156.4,3156.1,0.03726672]
[1738139236200,3.1683,3156.3,3156.1,0.03726672]
[1738139236399,3.91916,3156.2,3156.1,0.03726672]
[1738139238491,3.16836,3156.2,3156.1,0.03726672]
[1738139241232,3.16826,3156.3,3155.7,0.55]
[1738139241394,3.16847,3156.1,3155.7,0.55]
[1738139242039,3.16826,3156.3,3155.7,0.55]
[1738139242362,3.16826,3156.3,3155.7,3.71879]
[1738139242827,3.16826,3156.3,3155.7,1.852338]
[1738139243038,3.16826,3156.3,3155.8,3.16875]
[1738139244936,3.16826,3156.3,3155.7,1.852338]
[1738139245233,3.16826,3156.3,3155.7,5.021168]
[1738139245420,3.16826,3156.3,3155.7,3.71883]
[1738139246840,0.98007528,3156.4,3155.7,3.71883]
[1738139246989,0.16537528,3156.4,3155.9,3.71859]
[1738139247189,0.16537528,3156.4,3156.0,0.7772]
[1738139247428,0.16537528,3156.4,3156.0,7.60188973]
[1738139247633,0.16537528,3156.4,3156.0,4.43335973]
[1738139248428,0.16537528,3156.4,3156.1,3.16845]
[1738139249046,0.16537528,3156.4,3156.2,0.03806873]
[1738139249674,0.16537528,3156.4,3156.0,0.7772]
[1738139249847,0.16537528,3156.4,3156.3,0.03806873]
[1738139250049,0.16537528,3156.4,3156.0,3.94576]
[1738139250252,0.16537528,3156.4,3156.3,0.03806873]
[1738139250473,0.16537528,3156.4,3156.0,3.94576]
[1738139250679,0.16537528,3156.4,3156.3,0.03806873]
[1738139250888,3.16798,3156.6,3156.0,3.94576]
[1738139251200,6.33567,3156.8,3156.2,3.16834]
[1738139251332,0.16533167,3156.6,3156.2,8.54834]
[1738139251775,0.16533167,3156.6,3156.3,0.03806873]
[1738139251948,3.16807,3156.5,3156.2,5.38]
[1738139252148,3.16807,3156.5,3156.3,0.03806873]
[1738139252355,3.16807,3156.5,3156.2,5.38]
[1738139252570,3.33338167,3156.6,3156.2,5.38]
[1738139252893,3.33338167,3156.6,3156.3,0.03806873]
[1738139253201,3.33338167,3156.6,3156.2,5.38]
[1738139253357,3.33338167,3156.6,3156.4,0.03806873]
[1738139253553,3.33338167,3156.6,3156.2,5.38]
[1738139254090,3.33338167,3156.6,3156.3,0.03806873]
[1738139254451,3.33338167,3156.6,3156.2,5.38]
[1738139254695,3.33338167,3156.6,3156.4,0.03806873]
[1738139254880,3.33338167,3156.6,3156.2,5.38]
[1738139255116,0.16533167,3156.6,3156.5,0.03806873]
[1738139255301,0.16533167,3156.6,3156.2,5.38]
[1738139255502,0.16533167,3156.6,3156.5,0.03806873]
[1738139255701,0.16533167,3156.6,3156.2,5.38]
[1738139255900,0.16533167,3156.6,3156.5,0.03806873]
[1738139256095,0.16533167,3156.6,3156.2,5.38]
[1738139256288,0.16533167,3156.6,3156.5,0.03806873]
[1738139256508,0.16533167,3156.6,3156.2,5.38]
[1738139256714,0.16533167,3156.6,3156.5,0.03806873]
[1738139256937,0.16533167,3156.6,3156.2,5.38]
[1738139257089,0.16533167,3156.6,3156.5,0.03806873]
[1738139257290,0.16533167,3156.6,3156.2,5.38]
[1738139257490,3.33329167,3156.6,3156.5,0.03806873]
[1738139258122,3.33329167,3156.6,3156.2,5.38]
[1738139258323,6.50134167,3156.6,3156.5,0.03806873]
[1738139258621,3.33329167,3156.6,3156.5,0.03806873]
[1738139258825,0.7759,3156.5,3156.2,5.38]
[1738139259129,3.16826,3156.3,3156.2,5.38]
[1738139261819,3.16826,3156.3,3155.8,3.16874]
[1738139262522,3.16826,3156.3,3155.9,0.03673531]
[1738139263121,3.16816,3156.4,3155.9,0.03673531]
[1738139264273,3.16816,3156.4,3155.9,3.20538531]
[1738139264474,3.16816,3156.4,3155.9,4.70389415]
[1738139264839,3.16829,3156.3,3155.9,1.53524415]
[1738139265168,3.16826,3156.3,3155.9,0.03673531]
[1738139265534,3.16826,3156.3,3155.8,0.55]
[1738139265869,3.16816,3156.4,3155.8,3.71868]
[1738139266065,3.16816,3156.4,3155.9,0.03668256]
[1738139266289,3.16816,3156.4,3155.9,3.20529256]
[1738139266971,3.16816,3156.4,3155.9,4.11063977]
[1738139269501,0.7759,3156.5,3155.9,4.11061977]
[1738139269656,3.94398,3156.5,3156.0,3.16853]
[1738139269858,3.16808,3156.5,3156.1,0.8132]
[1738139270288,0.16533167,3156.6,3156.2,3.20504256]
[1738139270490,0.16533167,3156.6,3156.3,3.57002426]
[1738139271004,0.16533167,3156.6,3156.4,0.0367236]
[1738139277973,0.16533167,3156.6,3156.4,3.2048836]
[1738139280366,0.16533167,3156.6,3156.4,0.0367236]
[1738139280719,3.33334167,3156.6,3156.3,0.55]
[1738139280915,4.42797584,3156.6,3156.5,0.03652433]
[1738139281120,3.16826,3156.3,3156.2,5.38]
[1738139281362,3.92956,3156.3,3156.2,5.38]
[1738139284667,3.16874,3155.9,3155.4,2.44291304]
[1738139284968,3.16892,3155.7,3155.3,5.38]
[1738139285185,3.16902,3155.6,3155.3,5.38]
[1738139285587,3.16912,3155.5,3155.3,5.38]
[1738139285757,0.9157046,3155.8,3155.3,5.38]
[1738139286092,3.16903,3155.6,3155.3,5.38]
[1738139286287,3.16893,3155.7,3155.3,5.38]
[1738139286580,3.1691,3155.5,3155.3,5.38]
[1738139286978,3.16917,3155.4,3155.3,5.38]
[1738139287185,4.22474571,3155.7,3155.3,5.38]
[1738139287391,0.7926,3155.4,3154.5,2.44291304]
[1738139287547,0.7926,3155.4,3154.5,3.17007]
[1738139287548,3.16953,3155.1,3154.5,3.17007]
[1738139287742,3.16953,3155.1,3154.6,3.16995]
[1738139287943,3.16929,3155.3,3154.6,3.16995]
[1738139288166,0.7926,3155.4,3154.9,3.1696]
[1738139288369,0.8081,3155.6,3155.0,3.16951]
[1738139288547,3.97708,3155.6,3155.0,3.16951]
[1738139288745,3.16907,3155.5,3155.0,3.16951]
[1738139290983,3.1689,3155.7,3155.2,3.16933]
[1738139291289,0.1651046,3155.8,3155.3,0.762]
[1738139291881,0.1651046,3155.8,3155.3,3.93127]
[1738139292177,0.1651046,3155.8,3155.4,3.16914]
[1738139292384,0.1651046,3155.8,3155.3,3.93127]
[1738139292584,0.1651046,3155.8,3155.6,3.16896]
[1738139293116,0.1651046,3155.8,3155.7,0.03391298]
[1738139293314,3.16819,3156.4,3155.9,3.16862]
[1738139293514,0.16516801,3156.2,3155.9,3.16862]
[1738139294014,0.16516801,3156.2,3156.0,0.03391298]
[1738139295612,3.16847,3156.1,3155.6,6.16889]
[1738139295915,3.16847,3156.1,3155.6,6.6064729]
[1738139296113,0.16516801,3156.2,3155.6,6.6064729]
[1738139296316,0.16516801,3156.2,3155.8,3.16872]
[1738139296686,0.16516801,3156.2,3155.7,3.71881]
[1738139297388,3.97487,3156.1,3155.7,0.55]
[1738139297588,0.8064,3156.1,3155.7,3.71882]
[1738139297914,0.8064,3156.1,3155.7,4.73916928]
[1738139299224,3.16873,3155.9,3155.3,3.16924]
[1738139299527,6.33748,3155.9,3155.3,3.16924]
[1738139299890,3.16873,3155.9,3155.3,3.16924]
[1738139300405,3.16873,3155.9,3155.4,3.16916]
[1738139301336,0.16516801,3156.2,3155.7,0.8056]
[1738139301835,0.16516801,3156.2,3155.9,3.16859]
[1738139302139,0.16516801,3156.2,3156.0,3.16852]
[1738139302638,0.16516801,3156.2,3155.8,3.16868]
[1738139302991,0.16516801,3156.2,3155.9,3.16866]
[1738139303937,0.16516801,3156.2,3156.1,3.16846]
[1738139304146,0.16516801,3156.2,3155.9,6.33722]
[1738139304347,0.16516801,3156.2,3155.9,7.3410381]
[1738139305008,0.16516801,3156.2,3155.9,4.1723781]
[1738139305209,0.16516801,3156.2,3155.9,3.16856]
[1738139305735,0.16516801,3156.2,3155.9,6.33714]
[1738139306050,0.16516801,3156.2,3155.9,3.16856]
[1738139307325,0.16516801,3156.2,3156.0,0.03118237]
[1738139310925,0.16516801,3156.2,3156.1,3.16846]
[1738139311120,0.16516801,3156.2,3156.1,0.66797161]
[1738139311323,0.16516801,3156.2,3156.1,0.03114137]
[1738139315268,0.16516801,3156.2,3155.9,3.71864]
[1738139315470,0.16516801,3156.2,3156.1,0.58090707]
[1738139315672,0.16516801,3156.2,3156.1,0.55]
[1738139315844,0.16516801,3156.2,3155.9,0.55]
[1738139316175,0.16516801,3156.2,3155.9,3.71862]
[1738139316374,0.16516801,3156.2,3156.0,0.03090707]
[1738139319891,4.11356801,3156.2,3156.0,0.03090707]
[1738139320189,4.11356801,3156.2,3155.8,5.38]
[1738139320489,4.11356801,3156.2,3156.1,0.0307038]
[1738139320692,4.11356801,3156.2,3155.9,0.03075066]
[1738139320986,4.11356801,3156.2,3155.8,5.38]
[1738139321172,4.11356801,3156.2,3156.0,0.03075066]
[1738139321379,4.11356801,3156.2,3155.8,5.38]
[1738139321574,3.92186,3155.9,3155.8,5.38]
[1738139322578,3.92186,3155.9,3155.8,5.41077995]
[1738139322980,4.08614801,3156.2,3155.8,5.41077995]
[1738139323295,7.25460801,3156.2,3155.8,5.41077995]
[1738139323461,4.08614801,3156.2,3155.8,5.41077995]
[1738139330816,3.16848,3156.1,3155.8,5.41077995]
[1738139332525,0.91776801,3156.2,3155.8,5.41077995]
[1738139337933,0.16516801,3156.2,3155.9,1.04175169]
[1738139338232,0.16516801,3156.2,3156.0,0.85063227]
[1738139338599,3.33355801,3156.2,3156.0,0.03093227]
[1738139338982,3.33355801,3156.2,3155.8,5.38]
[1738139338983,3.16848,3156.1,3155.8,5.38]
[1738139339184,0.16516801,3156.2,3156.1,0.03084439]
[1738139339426,3.33352801,3156.2,3155.8,5.38]
[1738139339623,3.33352801,3156.2,3156.1,0.03084439]
[1738139339789,3.98370281,3156.2,3155.8,5.38]
[1738139339995,3.33352801,3156.2,3156.1,0.03084439]
[1738139340186,3.33352801,3156.2,3155.8,5.38]
[1738139340527,3.33352801,3156.2,3155.8,8.54875]
[1738139340711,0.16516801,3156.2,3155.8,8.54875]
[1738139341026,0.16516801,3156.2,3155.9,0.03084439]
[1738139342016,0.16516801,3156.2,3155.9,3.19946439]
[1738139342542,0.16516801,3156.2,3156.1,1.80985169]
[1738139342770,0.16516801,3156.2,3156.1,5.00916194]
[1738139342912,3.16771,3156.9,3156.2,0.55]
[1738139343113,3.95852,3157.0,3156.5,1.04175169]
[1738139343314,3.33301355,3156.9,3156.6,0.03085025]
[1738139343639,0.16533355,3156.9,3156.6,0.03085025]
[1738139344000,0.16533355,3156.9,3156.6,0.83075025]
[1738139345307,3.33306355,3156.9,3156.6,0.83075025]
[1738139345503,0.87857222,3156.9,3156.6,0.03085025]
[1738139345709,3.16786,3156.7,3156.4,0.7727]
[1738139345903,3.16783,3156.8,3156.5,0.03085025]
[1738139346105,3.16788,3156.7,3156.3,0.55]
[1738139346642,3.97588,3156.7,3156.4,0.03085025]
[1738139347143,3.16803,3156.6,3156.4,0.03085025]
[1738139347350,3.16803,3156.6,3156.2,0.7727]
[1738139347506,3.16803,3156.6,3156.3,0.03085025]
[1738139347708,3.16803,3156.6,3156.2,0.7727]
[1738139348045,3.97588,3156.7,3156.3,0.03085025]
[1738139348544,3.16798,3156.6,3156.4,0.03085025]
[1738139348719,3.16798,3156.6,3156.2,0.7727]
[1738139349089,3.16798,3156.6,3156.3,0.03085025]
[1738139349570,3.16798,3156.6,3156.4,0.03085025]
[1738139349960,3.16798,3156.6,3156.2,0.7727]
[1738139350282,3.16798,3156.6,3156.3,0.03063352]
[1738139350761,3.16798,3156.6,3156.4,0.03063352]
[1738139350965,6.33602,3156.6,3156.1,3.16841]
[1738139351280,3.16805,3156.6,3156.2,0.03063352]
[1738139351863,3.97591,3156.7,3156.2,3.19894352]
[1738139352430,3.97591,3156.7,3156.2,0.03063352]
[1738139352985,3.97591,3156.7,3156.2,3.19895352]
[1738139353147,3.33303355,3156.9,3156.3,3.92979]
[1738139353351,3.33303355,3156.9,3156.5,3.16799]
[1738139353352,0.16533355,3156.9,3156.5,3.16799]
[1738139353548,0.16533355,3156.9,3156.6,3.19854352]
[1738139353764,0.16533355,3156.9,3156.7,3.97734]
[1738139354080,3.1673,3157.3,3156.7,3.97734]
[1738139354378,3.33261599,3157.3,3156.8,3.19832352]
[1738139354575,3.96200944,3157.3,3156.8,3.19832352]
[1738139354951,3.96200944,3157.3,3156.8,0.03063352]
[1738139355962,0.79470944,3157.3,3156.9,3.16762]
[1738139356278,0.79470944,3157.3,3157.0,0.03029382]
[1738139360149,0.79470944,3157.3,3157.0,3.19784382]
[1738139360489,0.79470944,3157.3,3157.0,0.03029382]
[1738139363096,3.96204944,3157.3,3157.0,0.03029382]
[1738139363451,3.96204944,3157.3,3156.8,3.71774]
[1738139363690,3.96204944,3157.3,3157.1,0.02974342]
[1738139363999,3.96204944,3157.3,3157.2,0.02974342]
[1738139364468,3.96204944,3157.3,3156.8,3.71774]
[1738139364669,3.96204944,3157.3,3157.2,0.02974342]
[1738139364998,0.8222,3157.1,3156.6,8.54794]
[1738139365200,3.16772,3156.9,3156.6,5.38]
[1738139365495,3.16762,3157.0,3156.6,5.38]
[1738139365794,3.16762,3157.0,3156.5,3.168]
[1738139366598,3.98972,3157.1,3156.3,6.1735]
[1738139366801,3.16776,3156.8,3156.3,9.34168]
[1738139367453,3.16776,3156.8,3156.4,0.02987223]
[1738139367892,3.16765,3157.0,3156.4,6.36607223]
[1738139368325,3.16765,3157.0,3156.4,3.19797223]
[1738139368835,3.16765,3157.0,3156.4,4.23923753]
[1738139370016,3.98973,3157.1,3156.4,4.23923753]
[1738139370189,3.16756,3157.0,3156.4,4.23923753]
[1738139370909,3.16767,3156.9,3156.4,4.23923753]
[1738139374229,3.16764,3157.0,3156.4,4.23928753]
[1738139374522,3.16769,3156.9,3156.4,4.23928753]
[1738139374827,3.33303256,3156.9,3156.4,4.23928753]
[1738139375996,6.50076256,3156.9,3156.4,4.23928753]
[1738139376202,3.16782,3156.8,3156.4,0.02987223]
[1738139376401,3.16799,3156.6,3156.4,0.02987223]
[1738139376815,3.16799,3156.6,3156.2,1.0412653]
[1738139377322,3.16799,3156.6,3156.3,0.03006546]
[1738139377506,3.16799,3156.6,3156.2,1.0412653]
[1738139377840,3.16799,3156.6,3156.3,0.03006546]
[1738139378134,3.16799,3156.6,3156.2,1.0412653]
[1738139378435,3.16799,3156.6,3156.3,0.03006546]
[1738139378592,3.16816,3156.4,3156.3,0.03006546]
[1738139378796,3.16816,3156.4,3156.0,1.0412653]
[1738139379037,3.16816,3156.4,3156.3,0.03006546]
[1738139379534,3.16816,3156.4,3156.0,1.0412653]
[1738139379730,3.16816,3156.4,3156.3,0.03006546]